Cogmind - Beta 16 @@@ ROGUE MODE // 2025.11.09 @ 17:43:59 Player: guru-sr Result: Destroyed by D-53 Grenadier with Mini Grenade Launcher Performance ------------- Evolutions (1) 500 Regions Visited (5) 1000 Robots Destroyed (74) 370 Value Destroyed (1217) 1217 Prototype IDs (42) 840 Alien Tech Used (0) 0 Bonus (164) 164 TOTAL SCORE: 4091 Bonus ------- High Alert Combat Kills 17 Aligned with FarCom 300 Friendly Fire -153 Cogmind --------- Core Integrity 0/400 Matter 103/300 Energy 100/100 System Corruption 11% Temperature Cool (0) Movement Core (50) Location -9/Exiles Parts ------- > --- POWER (1) -------- (None) > --- PROPULSION (4) --- (None) > --- UTILITY (2) ------ (None) > --- WEAPON (2) ------- (None) > --- INVENTORY (5) ---- Carbon-fiber Leg Light Armor Plating Advanced Beam Rifle AWS/Thermal Peak State ------------ > --- POWER ------------ Light Nuclear Core > --- PROPULSION ------- Light Treads Light Treads Light Treads Carbon-fiber Leg > --- UTILITY ---------- Improved Heat Sink High-capacity Storage Unit > --- WEAPON ----------- Advanced Beam Cannon Advanced Beam Cannon > --- INVENTORY -------- Ion Engine Light Treads Light Treads Improved Heat Sink Sensor Array Signal Interpreter Seismic Detector Target Analyzer ECM Suite Utility Shielding Light Armor Plating Medium Armor Plating Hacking Suite Advanced Beam Rifle Advanced Beam Rifle Advanced Beam Rifle Shock Bomb Launcher Rocket Launcher Datajack Scythe [Rating: 23] Favorites ----------- Power Ion Engine Engine Ion Engine Power Core Light Nuclear Core Propulsion Light Treads Treads Light Treads Leg Aluminum Leg Wheel Compact Wheel Utility Seismic Detector Device Seismic Detector Storage High-capacity Storage Unit Weapon Medium Laser Energy Gun Medium Laser Energy Cannon Advanced Beam Cannon Ballistic Gun Heavy Battle Rifle Launcher Grenade Launcher Special Melee Weapon Datajack Build | -11 -10 -10 -9 -9 -9 ------- Run | Yrd Mat Min Mat Min Exi Slots Evolved 2 | . . . 2 . . Power . | . . . . . . Propulsion 2 | . . . 2 . . Utility . | . . . . . . Weapon . | . . . . . . Parts Attached 49 | 7 16 2 18 2 4 Power 5 | 1 1 . 3 . . Engine 4 | 1 1 . 2 . . Core 1 | . . . 1 . . Reactor . | . . . . . . Propulsion 17 | 2 7 . 7 . 1 Treads 8 | . 2 . 6 . . Leg 3 | 2 . . . . 1 Wheel 6 | . 5 . 1 . . Hover . | . . . . . . Flight . | . . . . . . Utility 8 | 2 3 . 1 . 2 Device 5 | 1 1 . 1 . 2 Storage 3 | 1 2 . . . . Processor . | . . . . . . Hackware . | . . . . . . Protection . | . . . . . . Artifact . | . . . . . . Weapon 19 | 2 5 2 7 2 1 Energy Gun 10 | 2 4 1 3 . . Energy Cannon 4 | . . . 3 1 . Ballistic Gun 1 | . . 1 . . . Ballistic Cannon . | . . . . . . Launcher 3 | . 1 . 1 1 . Special Weapon . | . . . . . . Impact Weapon . | . . . . . . Slashing Weapon . | . . . . . . Piercing Weapon . | . . . . . . Special Melee Weapon 1 | . . . . . 1 Unidentified Prototypes 2 | . . . 1 . 1 Corrupted Parts 3 | . . . 1 . 2 System Corruption 11 | . . . 3 . 8 Parts Lost 1 | . . . . . 1 Power . | . . . . . . Propulsion 1 | . . . . . 1 Utility . | . . . . . . Weapon . | . . . . . . Highest Loss Streak 1 | . . . . . 1 To Critical Strikes . | . . . . . . Average Backups 15 | 3 11 14 18 19 18 Power . | . 1 1 . 1 . Propulsion 1 | 1 2 2 . 1 1 Utility 7 | . 5 7 8 9 9 Weapon 4 | . 2 3 7 6 6 Tool/Special . | . . . . . . Unused Backups 21 | . 5 . 5 . 11 Power 3 | . 2 . 1 . . Propulsion 2 | . 1 . 1 . . Utility 12 | . 1 . 3 . 8 Weapon 4 | . 1 . . . 3 Tool/Special . | . . . . . . Average Slot Usage (%) 95 | . 99 100 98 100 85 Engine 7 | . 14 14 9 . . Core 4 | . . . 1 11 10 Treads 28 | . 4 28 39 44 43 Leg 1 | . 4 . . . . Wheel 6 | . 18 . 3 . . Device 12 | . 14 14 11 11 10 Storage 12 | . 14 14 11 11 10 Energy Gun 13 | . 27 16 12 3 . Energy Cannon 2 | . . . 7 18 . Ballistic Gun 1 | . . 11 1 . . Special Melee Weapon 2 | . . . . . 9 Peak Build Rating 23 | 7 8 12 22 22 23 Average Rating 13 | 5 7 11 18 21 15 On Entrance 11 | . 7 8 12 22 21 Avg Prop Armor Cover (%) 3 | . . . 3 . . Naked Turns 13 | . . . . . 13 Heaviest Build 56 | 15 50 31 56 54 54 Greatest Support 80 | 20 40 40 80 80 80 Greatest Overweight (x) 2 | 1 2 . . . . Average Overweight (x) . | . . . . . . Largest Inventory Capacity 20 | 8 20 15 20 20 20 Average Capacity 17 | 7 14 15 19 20 19 Most Carried 20 | 5 15 15 20 20 20 Average Carried 15 | 3 12 14 18 19 19 Final Capacity 20 | 8 15 15 20 20 5 Final Carried 20 | 5 15 14 20 20 5 Class Distribution -------------------- 55% | Scavenger-Mutant 44% | Mutant Dominant Class ---------------- Mutant | -10/Materials Mutant | -10/Mines Scavenger-Mutant | -9/Materials Scavenger-Mutant | -9/Mines Scavenger-Mutant | -9/Exiles Resources | -11 -10 -10 -9 -9 -9 ----------- Run | Yrd Mat Min Mat Min Exi Matter Collected 1071 | 270 350 47 320 84 . Remotely . | . . . . . . Salvage Created 1850 | 86 584 188 783 209 . Parts 128 | 10 44 7 54 13 . Haulers Intercepted 3 | . 2 . 1 . . Recyclers Shooed 1 | . . . 1 . . Parts Field Recycled . | . . . . . . Retrieved Matter . | . . . . . . Parts Self-Destructed . | . . . . . . Prevented . | . . . . . . Parts Restored . | . . . . . . Kills | -11 -10 -10 -9 -9 -9 ------- Run | Yrd Mat Min Mat Min Exi Combat Hostiles Destroyed 47 | . 19 2 22 4 . Guns 26 | . 12 2 12 . . Cannons 5 | . . . 5 . . AOE 16 | . 7 . 5 4 . Classes Destroyed 11 | 1 7 1 2 . . Worker 3 | . 1 . 2 . . Builder 1 | . 1 . . . . Tunneler 7 | 4 1 1 1 . . Hauler 3 | . 2 . 1 . . Recycler 3 | . . 1 . 2 . Mechanic 2 | . . . 2 . . Operator 1 | . 1 . . . . Watcher 6 | . 3 . 3 . . Swarmer 30 | . 14 . 12 4 . Grunt 13 | . 5 2 6 . . Sentry 4 | . . . 4 . . Thug 1 | . . . . 1 . Best Kill Streak 8 | 3 5 2 8 4 . Combat Bots Only 6 | . 3 1 6 4 . Max Kills in Single Turn 3 | 1 2 2 3 2 . Gunslinging 1 | . . . 1 . . Exploded 3 | . 2 . 3 2 . Melee . | . . . . . . Uniques/NPCs Destroyed . | . . . . . . Combat | -11 -10 -10 -9 -9 -9 -------- Run | Yrd Mat Min Mat Min Exi Hostile Shots Fired 199 | . 72 12 92 3 20 Missed 48 | . 23 1 18 1 5 Hits 151 | . 49 11 74 2 15 Projectile 151 | . 49 11 74 2 15 AOE 10 | . . . . . 10 Critical Strikes 2 | . . . 2 . . Damage Taken 1866 | . 458 122 790 15 481 Core 500 | . 79 12 108 8 293 Absorbed by Shields . | . . . . . . Regen/Repaired (Parts) 42 | . 42 . . . . Core Remaining (%) 81 | 100 . 63 . . . Volleys Fired 123 | 10 48 9 50 6 . Largest 2 | 2 2 2 2 2 . Hottest 136 | 100 100 73 136 136 . Shots Fired 238 | 20 93 18 99 8 . Gun 191 | 20 89 18 64 . . Cannon 37 | . . . 33 4 . Launcher 10 | . 4 . 2 4 . Special . | . . . . . . Kinetic 13 | . . 9 4 . . Thermal 199 | 20 73 9 93 4 . Explosive 8 | . 4 . 2 2 . Electromagnetic 18 | . 16 . . 2 . Robot Hit Streak 18 | 5 12 8 18 2 . Robot Miss Streak 5 | 2 4 1 5 1 . Penetration Max . | . . . . . . Secondary Targets 2 | . 1 . 1 . . Max Gunslinging Chain 1 | . 1 . 1 . . Shots Hit Robots 159 | 13 60 15 55 3 13 Core Hits 86 | 4 35 6 33 8 . Critical Kills . | . . . . . . Critical Parts Destroyed 1 | . . 1 . . . Critical Strikes 13 | . 6 1 6 . . Burn 12 | . 6 . 6 . . Destroy 1 | . . 1 . . . Melee Attacks 13 | . . . . . 13 Impact . | . . . . . . Slashing . | . . . . . . Piercing . | . . . . . . Sneak Attacks 13 | . . . . . 13 Combat Hostiles . | . . . . . . Follow-up Attacks . | . . . . . . Damage Inflicted 3677 | 176 1144 264 1843 250 . Guns 2003 | 176 755 264 808 . . Cannons 439 | . . . 399 40 . Explosions 1235 | . 389 . 636 210 . Melee . | . . . . . . Ramming . | . . . . . . Kinetic 221 | . . 187 34 . . Thermal 2423 | 176 588 77 1542 40 . Explosive 821 | . 389 . 267 165 . Electromagnetic 212 | . 167 . . 45 . Impact . | . . . . . . Slashing . | . . . . . . Piercing . | . . . . . . Highest Corruption 11 | . . . 3 3 11 Average Corruption 7 | . . . 3 3 10 Corruption Purged . | . . . . . . Corruption Blocked . | . . . . . . Effects 64 | . . . 18 4 42 Message Errors 16 | . . . 4 . 12 Matter Fused 20 | . . . 7 2 11 Heat Flow Errors 4 | . . . . . 4 Energy Discharges 12 | . . . 3 . 9 Data Loss (minor) 8 | . . . 3 1 4 Data Loss (major) 2 | . . . 1 . 1 Alerts 2 | . . . . 1 1 Overload Shots . | . . . . . . Overflow Damage 125 | . . . 125 . . Projectiles . | . . . . . . Explosions 125 | . . . 125 . . Melee . | . . . . . . Knockbacks . | . . . . . . Impact . | . . . . . . Kinetic . | . . . . . . Secondary . | . . . . . . Self-Inflicted Damage 76 | . 16 . 60 . . Shots 2 | . 1 . 1 . . Rammed . | . . . . . . Targets Rammed . | . . . . . . Kicked . | . . . . . . Crushed . | . . . . . . Highest Temperature 414 | 117 327 150 414 30 178 Average Temperature 90 | 51 83 68 111 20 85 Received Heat Transfer 324 | . 78 66 150 . 30 Effects 7 | . . . 7 . . Shutdowns 1 | . . . 1 . . Interference 5 | . . . 5 . . Damage (minor) 1 | . . . 1 . . Siege Activations . | . . . . . . Martial Activations . | . . . . . . Shielding Activations . | . . . . . . Robots Disrupted . | . . . . . . Combat Hostiles . | . . . . . . Robots Corrupted . | . . . . . . Combat Hostiles . | . . . . . . Parts Fried . | . . . . . . Impact Corruptions . | . . . . . . Robots Melted . | . . . . . . Combat Hostiles . | . . . . . . Parts Melted 6 | 1 2 . 3 . . Heat Transferred 5645 | 518 2086 175 2792 74 . Parts Sabotaged . | . . . . . . Parts Stolen . | . . . . . . Parts Stripped . | . . . . . . Power Chain Reactions 1 | . . . . 1 . Alert | -11 -10 -10 -9 -9 -9 ------- Run | Yrd Mat Min Mat Min Exi Maximum Alert Level 2 | . 1 . 2 1 . Low Security (%) 89 | 100 94 100 81 64 . Level 1 8 | . 5 . 12 35 . Level 2 1 | . . . 6 . . Level 3 . | . . . . . . Level 4 . | . . . . . . Level 5 . | . . . . . . High Security . | . . . . . . Max Security . | . . . . . . Peak Influence 505 | 10 259 99 505 265 . Initial 194 | . . 99 . 194 . Average 91 | 1 97 45 91 203 . Influence Increases 1614 | 20 647 60 766 121 . Destroy 0b10 Robot/C 940 | . 380 40 440 80 . Destroy 0b10 Robot/NC 130 | 20 45 10 45 10 . Destroy Leader 188 | . 80 10 88 10 . Successful Hack 32 | . 18 . 14 . . Select Force Hacks 60 | . 60 . . . . Disable Machine 75 | . . . 75 . . Destroy Structure 99 | . 34 . 44 21 . Lose Combat Pursuer 90 | . 30 . 60 . . Influence Decreases 1614 | 20 392 315 267 385 235 Entered New Map 696 | . . 156 . 305 235 Time Decay 918 | 20 392 159 267 80 . Squads Dispatched 3 | . 3 . . . . Investigation 2 | . 2 . . . . Extermination . | . . . . . . Reinforcement 1 | . 1 . . . . Assault . | . . . . . . Garrison . | . . . . . . Intercept . | . . . . . . Searches Triggered . | . . . . . . Construction Impeded . | . . . . . . Haulers Reinforced . | . . . . . . Active Scanning Responses . | . . . . . . Cargo Convoy Interrupts . | . . . . . . Stealth | -11 -10 -10 -9 -9 -9 --------- Run | Yrd Mat Min Mat Min Exi Distress Signals 5 | . 1 . 4 . . Communications Jammed . | . . . . . . Distress Signals . | . . . . . . Times Spotted 70 | . 28 2 30 4 6 Peak Tracking Total 8 | . 6 2 6 4 8 Tactical Retreats 3 | . 2 . 1 . . Traps | -11 -10 -10 -9 -9 -9 ------- Run | Yrd Mat Min Mat Min Exi Traps Triggered 2 | . 1 . 1 . . Indirectly . | . . . . . . Trap Hack Attempts . | . . . . . . Triggered . | . . . . . . Disarmed . | . . . . . . Reprogrammed . | . . . . . . Reused . | . . . . . . Traps Extracted . | . . . . . . Installed . | . . . . . . Triggered . | . . . . . . Machines | -11 -10 -10 -9 -9 -9 ---------- Run | Yrd Mat Min Mat Min Exi Machines Disabled 5 | . . . 5 . . Max in Single Turn 3 | . . . 3 . . Machines Repaired . | . . . . . . Machines Dismantled . | . . . . . . Machines Sabotaged . | . . . . . . Overloaded Fab Kills . | . . . . . . Hacking | -11 -10 -10 -9 -9 -9 --------- Run | Yrd Mat Min Mat Min Exi Machines Accessed 23 | . 10 . 8 . 5 Terminals 12 | . 7 . 5 . . Fabricators . | . . . . . . Repair Stations 3 | . 1 . 2 . . Recycling Units 2 | . 2 . . . . Scanalyzers 1 | . . . 1 . . Garrison Access . | . . . . . . Total Hacks 107 | . 33 . 24 . 50 Successful 86 | . 24 . 12 . 50 Failed 21 | . 9 . 12 . . Catastrophic . | . . . . . . Database Lockouts . | . . . . . . Manual 25 | . 15 . 9 . 1 Terminals 43 | . 25 . 18 . . Fabricators . | . . . . . . Repair Stations 7 | . 3 . 4 . . Recycling Units 5 | . 5 . . . . Scanalyzers 2 | . . . 2 . . Garrison Access . | . . . . . . Terminal Hacks 69 | . 14 . 5 . 50 Record 49 | . . . . . 49 Robot Analysis 3 | . 3 . . . . Prototype ID Bank 2 | . 2 . . . . Branch Access Points 1 | . 1 . . . . Terminal Index 2 | . 1 . 1 . . Alert Level 1 | . 1 . . . . Locate Traps 4 | . 3 . 1 . . Zone Layout 6 | . 3 . 3 . . Proto ID Catalog 1 | . . . . . 1 Fabricator Hacks . | . . . . . . Repair Station Hacks 5 | . 2 . 3 . . Scan Component 3 | . 1 . 2 . . Repair 2 | . 1 . 1 . . Recycling Unit Hacks 3 | . 3 . . . . Report Inventory 2 | . 2 . . . . Retrieve Components 1 | . 1 . . . . Scanalyzer 2 | . . . 2 . . Retrieve Study 2 | . . . 2 . . Garrison Access Hacks . | . . . . . . Unauthorized Hacks 7 | . 5 . 2 . . Terminals 5 | . 3 . 2 . . Botnet 5 | . 3 . 2 . . Fabricators . | . . . . . . Repair Stations . | . . . . . . Recycling Units 2 | . 2 . . . . Tunnel 2 | . 2 . . . . Scanalyzers . | . . . . . . Garrison Access . | . . . . . . Data Cores Recovered . | . . . . . . Used . | . . . . . . Hacking Detections 18 | . 10 . 8 . . Full Trace Events . | . . . . . . Feedback Events . | . . . . . . Feedback Blocked . | . . . . . . Robot Schematics Acquired . | . . . . . . Robots Built . | . . . . . . Authchips . | . . . . . . Time . | . . . . . . Total Robot Build Rating . | . . . . . . Part Schematics Acquired . | . . . . . . Parts Built . | . . . . . . Authchips . | . . . . . . Time . | . . . . . . Total Part Build Rating . | . . . . . . Part Studies Acquired 2 | . . . 2 . . Parts Repaired 1 | . 1 . . . . Time 58 | . 26 . 32 . . Parts Recycled . | . . . . . . Recycled Matter . | . . . . . . Retrieved Matter . | . . . . . . Retrieved Components 9 | . 9 . . . . Parts Scanalyzed . | . . . . . . Part Schematics Acquired . | . . . . . . Parts Damaged . | . . . . . . Bothacking | -11 -10 -10 -9 -9 -9 ------------ Run | Yrd Mat Min Mat Min Exi Used RIF Installer . | . . . . . . Robots Hacked 12 | . . . . . 12 Non-combat 3 | . . . . . 3 Combat 9 | . . . . . 9 Robot Hacks Applied 13 | . . . . . 13 parse_system 13 | . . . . . 13 Relay Couplers Released . | . . . . . . Fabnet Peak Effective % . | . . . . . . Robots Rewired . | . . . . . . Allies Hacked . | . . . . . . Hacks Repelled . | . . . . . . Allies | -11 -10 -10 -9 -9 -9 -------- Run | Yrd Mat Min Mat Min Exi Total Allies . | . . . . . . Largest Group . | . . . . . . Highest-Rated Group . | . . . . . . Highest-Rated Ally . | . . . . . . Total Orders . | . . . . . . Ally Attacks . | . . . . . . Total Damage . | . . . . . . Kills . | . . . . . . Allies Corrupted . | . . . . . . Allies Melted . | . . . . . . Intel | -11 -10 -10 -9 -9 -9 ------- Run | Yrd Mat Min Mat Min Exi Active Infowar (turns) 2534 | 28 1317 350 839 . . Seismic 2534 | 28 1317 350 839 . . Robot Analysis Total 3 | . 3 . . . . Derelict Logs Recovered 1 | . . . . 1 . Drone Launches . | . . . . . . Drone Recoveries . | . . . . . . Exploration | -11 -10 -10 -9 -9 -9 ------------- Run | Yrd Mat Min Mat Min Exi Turns Passed 4149 | 140 1317 350 977 170 1195 Spaces Moved 2225 | 74 769 179 397 90 716 Core 6 | 6 . . . . . Treads 1474 | . 92 179 397 90 716 Legs 176 | 68 108 . . . . Wheels 569 | . 569 . . . . Hover . | . . . . . . Flight . | . . . . . . Fastest Speed 50 | 50 90 160 160 160 160 Average Speed 143 | 116 115 160 160 160 160 Slowest Speed 260 | 120 260 160 160 160 160 Overloaded Moves . | . . . . . . Propulsion Burnouts . | . . . . . . Robots Hopped . | . . . . . . Potential Cave-ins . | . . . . . . Cave-ins Triggered . | . . . . . . Exploration Rate (%) 46 | 4 92 36 34 21 94 Regions Visited 5 Branch Regions 3 Pre-discovered Areas 4 | . 2 . . 1 1 Known Exits Taken 1 | . 1 . . . . Unknown Exits Taken 4 | 1 . 1 1 1 . Scrap Searched . | . . . . . . Spaces Dug . | . . . . . . Terrain Destroyed 120 | . 31 . 55 34 . Melee . | . . . . . . Projectile 1 | . . . . 1 . AOE 119 | . 31 . 55 33 . Terrain Rammed . | . . . . . . Walls Destroyed . | . . . . . . Machines Disabled . | . . . . . . Actions | -11 -10 -10 -9 -9 -9 --------- Run | Yrd Mat Min Mat Min Exi Total 2934 | 105 1100 225 639 107 758 Wait 397 | 9 213 32 123 3 17 Move 2220 | 73 768 178 396 89 716 Hop . | . . . . . . Pick Up 58 | 6 24 1 23 2 2 Fast Attach 13 | 6 3 1 3 . . Attach 7 | 1 2 . 3 . 1 Detach . | . . . . . . Swap 58 | . 26 1 21 5 5 Drop 45 | . 16 3 20 2 4 Fire 123 | 10 48 9 50 6 . Melee 13 | . . . . . 13 Ram . | . . . . . . Kick . | . . . . . . Crush . | . . . . . . Escape Stasis . | . . . . . . Rewire . | . . . . . . Trap . | . . . . . . Miscellaneous . | . . . . . . Route ------- -11/Scrapyard -10/Materials (discovered 5 exits: *Mat x3 / *Min x2) -10/Mines -9/Materials (discovered 2 exits: [*Min x2]) -9/Mines (discovered 2 exits: *Exi / [*Zio]) -9/Exiles (discovered 2 exits: [*Min x2]) History --------- Turn | Location | Event 6 | -11/Scrapyard | Discovered new exit (range 15) 141 | -11/Scrapyard | Entered Materials 308 | -10/Materials | Build established: Mutant 394 | -10/Materials | Discovered new exit (range 16) 441 | -10/Materials | Discovered new exit (range 5) 495 | -10/Materials | Discovered new exit (range 20) 777 | -10/Materials | Identified exit to Mines 1017 | -10/Materials | Discovered new exit (range 16) 1262 | -10/Materials | Repaired Lgt. Treads 1458 | -10/Materials | Entered Mines 1502 | -10/Mines | A weapon hastily lodged in a ceiling crevice suddenly fell to the ground 1688 | -10/Mines | Discovered new exit (range 14) 1808 | -10/Mines | Entered Materials 1808 | -9/Materials | Evolved 2 slots: Propulsion x2 1808 | -9/Materials | Discovered new exit (range 15) 2160 | -9/Materials | Build established: Scavenger-Mutant 2636 | -9/Materials | Discovered new exit (range 8) 2785 | -9/Materials | Entered Mines 2809 | -9/Mines | Met a Derelict bent on vengeance 2917 | -9/Mines | Learned location of Zion (-7) 2923 | -9/Mines | A Derelict revealed a hidden shortcut to a safe place 2947 | -9/Mines | Deemed a non-threat by the Exiles lab entrance 2949 | -9/Mines | Discovered new exit (range 5) 2955 | -9/Mines | Entered Exiles 2956 | -9/Exiles | System corruption reached 10% 2985 | -9/Exiles | Discovered new exit (range 15) 3038 | -9/Exiles | Met 8R-AWN 3075 | -9/Exiles | Met EX-HEX 3211 | -9/Exiles | Met EX-DEC 3406 | -9/Exiles | Visited The Gauntlet 3711 | -9/Exiles | Discovered new exit (range 12) 3857 | -9/Exiles | Met EX-BIN 3906 | -9/Exiles | Aligned with FarCom system 3908 | -9/Exiles | Given EX-Vault access code 3986 | -9/Exiles | Opened EX-Vault 3997 | -9/Exiles | Found Prototype Device 3998 | -9/Exiles | Identified Trap Reconfigurator 4025 | -9/Exiles | Found AWS/Thermal 4057 | -9/Exiles | Exiles lab attacked by MAIN.C 4137 | -9/Exiles | Released all parts (7) 4142 | -9/Exiles | Core integrity fell below 50% 4147 | -9/Exiles | Core integrity fell below 20% 4150 | -9/Exiles | Destroyed by D-53 Grenadier with Mini Grenade Launcher Last Messages --------------- Machine disabled. as-96575 destroyed. Machine disabled. as-50628 destroyed. as-36950 destroyed. as-53081 destroyed. Machine disabled. The unstable cave ceiling collapses. as-98601 destroyed. The unstable cave ceiling collapses. Machine disabled. Assembled Analyzer disabled. Lgt. Treads+ destroyed. NE:>DAK Released Datajack. Map ----- +----------------------------------------------------+ | ?#""""""## #?#########???????????????????????? | | ?##"###### #?#"""""""#???????????????????????? | | ? "#????# #?#"""""""#???????????????????????? | | """ #????# #?#"""""""#???????????????????????? | | """ #???## ###"" """"#???????????????????????? | | ??" #???#" """"#???????????????????????? | | ??###???#" """#???????????????????????? | | ????????#" """#???????????????????????? | | ????????#" """#???????????????????????? | | #???????#" """#???????????????????????? | | #???????#" """##??????????????????????? | | #???????## """""??????????????????????? | | #????????# """######??????????????????? | | #????????#" "X" """"" #??????????????????? | | #????????#" """ # "?????????????????????? | | #????????#" """""""""#???????????????????????? | | #???????##" ###########???????????????????????? | | #??????##"" #?????????????????????????????????? | | #?######"" #?????????????????????????????????? | | ###""""""" ##????????????????????????????????? | | """"" " "" ##???###########?????????????????? | | " """ " #####" """""##????????????????? | | " " """##???????????????? | | #???????????????? | | ! "#???????????????? | | [ @ a"#???????????##### | | [ " "##?????????##" # | | !== ""###???????#" # | | """""" d"""#??????##" # | | ######""" g "#????### | | ""##????#####""" gh##???# | | """##?????????##""" g ##### | | """##???????????#"""" | | ""#???????????##"" g ## | | ########??####"""" #### | | ## ####""" [ * #?#"" | | """" #?### | | % # #???? | | #????? | | " #####????? | | " "" """ ###????????? | | ""## ##""" " " ""#" #??????????? | | ""#### ######""" """##""""" #??????????? | | """"##??# #????###""""######## #####??????????? | | """#??## ####???######???????#???????????????? | | ""##??#! "!#????????????????????????????????? | | """##???#" !#????????????????????????????????? | | ##????#" "#????????????????????????????????? | | ##?????#!!""!"#????????????????????????????????? | | #??????########????????????????????????????????? | +----------------------------------------------------+ Best States ------------- Heat Dissipation 42 Energy Generation 14 Energy Capacity 265 Matter Stores 300 Matter Capacity 300 Sight Range 16 Terrain Scan Density 10 Evasion (%) 55 Recoil Reduction 4 Item Schematics ----------------- None Robot Schematics ------------------ None Fabricated ------------ Nothing Repaired ---------- Lgt. Treads | 70% | -10/Materials Studied --------- Lgt. Treads | -9/Materials | Hacked Aluminum Leg | -9/Materials | Hacked Alien Tech Used ----------------- None Achievements -------------- A Problem For Future Me Analysis Probe Deductive Reasoning Item+ Overwhelming Sixth Sense Challenges ------------ None Game ------ Seed BurstSniperDetonator Manual? 0 Play Time 01:14:41 Cumulative 2.2 hours Start 2025.11.09 @ 16:14:08 End 2025.11.09 @ 17:43:59 Sessions 1 Manual Loads 0 Difficulty Rogue Special Mode None Game No. 3 Rogue 3 Adventurer 0 Explorer 0 Win Type - Total 0 Types 0/0/0/0/0/0/0/0/0/0 Lore% 6 Gallery% 6 Achievement% 20 Wizard Run 0 Options --------- Layout 1 ASCII 0 Keyboard 0 Movement Mouse Keybinds 0 Fullscreen 1 Font 24/Smallcaps Map View 50x35 Zoom Use 0% Tactical HUD 0 Map Filters NONE Filters NONE Steam 1 RUN: 9b5e4ee3-9da4-485f-853c-6fb6f880ed65